Organisation Name,Purchase_Order_Number,Order_Date,Total_Value,Supplier_Name,Account_Name,Service
Rochdale Borough Council,d1059534,01/07/2016,"6,088.50",REDACTED COMMERCIAL CONFIDENTIALITY,EQUIPMENT - GENERAL,NEIGHBOURHOODS AND ENVIRONMENT
Rochdale Borough Council,d1059538,01/07/2016,"100,000.00",ROCHDALE BOROUGHWIDE HOUSING,GRANTS TO INDIVIDUALS,NEIGHBOURHOODS AND ENVIRONMENT
Rochdale Borough Council,d1059539,01/07/2016,"87,876.24",ROCHDALE BOROUGHWIDE HOUSING,GRANTS TO INDIVIDUALS,NEIGHBOURHOODS AND ENVIRONMENT
Rochdale Borough Council,e1021226,01/07/2016,"111,896.10",DIOCESE OF SALFORD,IMPROVEMENTS-MODERNISATION,EARLY HELP AND SCHOOLS
Rochdale Borough Council,r1001529,01/07/2016,"24,480.00",S T HEDGES QUINN LTD,IMPROVEMENTS-MODERNISATION,ECONOMY DIRECTORATE
Rochdale Borough Council,s1020539,04/07/2016,"7,279.00",ASTOR BANNERMAN (MEDICAL) LTD,TRANSACTIONS-EXPENDITURE,PHYSICAL DIS & OLDER PEOPLE
Rochdale Borough Council,s1020543,04/07/2016,"10,850.00",ACTION FIRST IPEOPLE LTD,FEES / COMMISSION,PHYSICAL DIS & OLDER PEOPLE
Rochdale Borough Council,d1059601,05/07/2016,"14,409.60",HARROD UK LTD,GRANTS TO VOLUNTARY BODIES,NEIGHBOURHOODS AND ENVIRONMENT
Rochdale Borough Council,d1059601,05/07/2016,"14,409.60",HARROD UK LTD,GRANTS TO VOLUNTARY BODIES,NEIGHBOURHOODS AND ENVIRONMENT
Rochdale Borough Council,d1059605,05/07/2016,"9,187.45",PROFILE SECURITY SERVICES LIMITED,SECURITY,NEIGHBOURHOODS AND ENVIRONMENT
Rochdale Borough Council,d1059610,05/07/2016,"26,900.00",JEREMY BENN ASSOCIATES LTD,OTHER SURVEYS,NEIGHBOURHOODS AND ENVIRONMENT
Rochdale Borough Council,d1059612,05/07/2016,"6,604.00",ABC INDUSTRIAL DOORS LTD,TRANSACTIONS-EXPENDITURE,PROPERTY AND HIGHWAYS
Rochdale Borough Council,e1021236,05/07/2016,"11,000.00",G W THEATRE COMPANY LIMITED,ACTIVITIES,EARLY HELP AND SCHOOLS
Rochdale Borough Council,e1021253,05/07/2016,"6,440.00",THE UNIVERSITY OF MANCHESTER,BASIC SALARIES,EARLY HELP AND SCHOOLS
Rochdale Borough Council,e1021254,05/07/2016,"5,172.00",THE UNIVERSITY OF MANCHESTER,BASIC SALARIES,EARLY HELP AND SCHOOLS
Rochdale Borough Council,e1021255,05/07/2016,"8,981.00",OLDHAM METROPOLITAN BOROUGH COUNCIL,OTHER EST - SEN PROVISION,EARLY HELP AND SCHOOLS
Rochdale Borough Council,w1001501,05/07/2016,"921,444.36",THE PENNINE ACUTE HOSPITALS NHS TRUST,CONTRACTS,BETTER CARE FUND POOLED BUDGET
Rochdale Borough Council,w1001502,05/07/2016,"460,722.18",THE PENNINE ACUTE HOSPITALS NHS TRUST,CONTRACTS,BETTER CARE FUND POOLED BUDGET
Rochdale Borough Council,w1001503,05/07/2016,"460,722.18",THE PENNINE ACUTE HOSPITALS NHS TRUST,CONTRACTS,BETTER CARE FUND POOLED BUDGET
Rochdale Borough Council,q1007378,06/07/2016,"5,124.00",HARVEY  HOUSE SOCIAL ENTERPRISES LTD,CONTRACTED SERVICES,NEIGHBOURHOODS AND ENVIRONMENT
Rochdale Borough Council,d1059644,07/07/2016,"8,250.00",YOTTA LIMITED,ASSET MANAGEMENT PLANS & SURVEYS,PROPERTY AND HIGHWAYS
Rochdale Borough Council,d1059660,07/07/2016,"6,524.08",SPUR INFORMATION SOLUTIONS LIMITED,IT EQUIPMENT,PROPERTY AND HIGHWAYS
Rochdale Borough Council,e1021270,07/07/2016,"44,100.00",POSITIVE STEPS,EXTERNALLY MANAGED FUNDS,EARLY HELP AND SCHOOLS
Rochdale Borough Council,e1021273,07/07/2016,"23,790.47",BIRTENSHAW HALL SCHOOL,OTHER LA`S - SEN PROVISION,EARLY HELP AND SCHOOLS
Rochdale Borough Council,e1021274,07/07/2016,"17,412.00",ROSSENDALE SCHOOL PRIORY,OTHER LA`S - SEN PROVISION,EARLY HELP AND SCHOOLS
Rochdale Borough Council,e1021275,07/07/2016,"5,999.94",ROC NORTHWEST LTD,OTHER LA`S - SEN PROVISION,EARLY HELP AND SCHOOLS
Rochdale Borough Council,ph101382,07/07/2016,"6,000.00",GEORGE HOUSE TRUST,PH BUSINESS CASES,PUBLIC HEALTH
Rochdale Borough Council,q1007388,07/07/2016,"21,700.00",STHREE PARTNERSHIP LLP,CAPITAL SALARIES,NEIGHBOURHOODS AND ENVIRONMENT
Rochdale Borough Council,q1007389,07/07/2016,"5,142.02",O T GLYNN,ROOM HIRE,FINANCE SERVICES
Rochdale Borough Council,q1007390,07/07/2016,"16,800.00",SENITOR RECRUITMENT,CAPITAL SALARIES,NEIGHBOURHOODS AND ENVIRONMENT
Rochdale Borough Council,q1007391,07/07/2016,"7,600.00",SENITOR RECRUITMENT,CAPITAL SALARIES,NEIGHBOURHOODS AND ENVIRONMENT
Rochdale Borough Council,q1007392,07/07/2016,"47,441.08",XEROX UK LTD,TRANSACTIONS-EXPENDITURE,NEIGHBOURHOODS AND ENVIRONMENT
Rochdale Borough Council,x1012728,07/07/2016,"8,654.34",SPORT WORKS,ACTIVITIES,EARLY HELP AND SCHOOLS
Rochdale Borough Council,x1012736,07/07/2016,"6,750.00",ADOPTION MATTERS NORTHWEST,ACTIVITIES,CHILDREN�S SOCIAL CARE
Rochdale Borough Council,d1059679,08/07/2016,"8,598.00",JOHN TAYLOR BELL FOUNDRY LOUGHBOROUGH LTD,REPAIRS & ALTS OF BUILDINGS,NEIGHBOURHOODS AND ENVIRONMENT
Rochdale Borough Council,e1021288,08/07/2016,"6,519.96",LANCASHIRE COUNTY COUNCIL,OTHER EST - SEN PROVISION,EARLY HELP AND SCHOOLS
Rochdale Borough Council,e1021289,08/07/2016,"18,162.00",OLDHAM METROPOLITAN BOROUGH COUNCIL,OTHER EST - SEN PROVISION,EARLY HELP AND SCHOOLS
Rochdale Borough Council,ph101384,08/07/2016,"90,750.00",PENNINE CARE NHS,PH PENNINE CARE CONTRACT,PUBLIC HEALTH
Rochdale Borough Council,s1020563,08/07/2016,"7,050.00",A & S BUILDING & ROOFING,TRANSACTIONS-EXPENDITURE,PHYSICAL DIS & OLDER PEOPLE
Rochdale Borough Council,s1020564,08/07/2016,"5,052.00",STANNAH LIFT SERVICES LTD,TRANSACTIONS-EXPENDITURE,PHYSICAL DIS & OLDER PEOPLE
Rochdale Borough Council,d1059723,11/07/2016,"5,499.74",RIPON FARM SERVICES,VEHICLE MAINTENANCE,NEIGHBOURHOODS AND ENVIRONMENT
Rochdale Borough Council,e1021299,11/07/2016,"5,215.97",LANCASHIRE COUNTY COUNCIL,OTHER EST - SEN PROVISION,EARLY HELP AND SCHOOLS
Rochdale Borough Council,f1004753,11/07/2016,"6,466.76",CO-OP PAYPOINT,BANK CHARGES,FINANCE SERVICES
Rochdale Borough Council,ph101385,11/07/2016,"109,737.18",VIRGIN CARE SERVICES LIMITED,VIRGIN CARE,PUBLIC HEALTH
Rochdale Borough Council,q1007407,11/07/2016,"14,133.56",KHIPU NETWORKS LTD,IT SUPPORT,NEIGHBOURHOODS AND ENVIRONMENT
Rochdale Borough Council,x1012755,11/07/2016,"9,500.00",SALFORD CITY COUNCIL,ADOPTION PAYMENTS,CHILDREN�S SOCIAL CARE
Rochdale Borough Council,d1059742,12/07/2016,"5,000.00",ROCHDALE TOWN TAXIS LTD,TAXI HIRE,NEIGHBOURHOODS AND ENVIRONMENT
Rochdale Borough Council,d1059775,12/07/2016,"10,000.00",KIRSTY RHIND,CONSULTANT FEES,ECONOMY DIRECTORATE
Rochdale Borough Council,f1004754,12/07/2016,"6,547.00",CAPITA BUSINESS SERVICES LIMITED,SOFTWARE,FINANCE SERVICES
Rochdale Borough Council,ph101388,12/07/2016,"57,649.50",ROCHDALE & DISTRICT MIND,PH BUSINESS CASES,PUBLIC HEALTH
Rochdale Borough Council,q1007420,12/07/2016,"6,477.80",THOMSON REUTERS,REFERENCE BOOKS/NEWSPAPERS/PERIODICALS,FINANCE SERVICES
Rochdale Borough Council,s1020572,12/07/2016,"5,083.00",STANNAH LIFT SERVICES LTD,IMPROVEMENTS-EXTENSIONS & ALTERATIONS,PHYSICAL DIS & OLDER PEOPLE
Rochdale Borough Council,d1059784,13/07/2016,"31,550.00",NORTH WEST TIPPERS LTD,PURCHASE OF VEHICLES,NEIGHBOURHOODS AND ENVIRONMENT
Rochdale Borough Council,d1059815,13/07/2016,"27,000.00",EMO OIL LIMITED,TRANSACTIONS-EXPENDITURE,CONTROL ACCOUNT
Rochdale Borough Council,q1007429,13/07/2016,"7,064.00",WEIGHTMANS LLP,PROFESSIONAL FEES,FINANCE SERVICES
Rochdale Borough Council,q1007432,13/07/2016,"5,434.00",CLYDE & CO,LEGAL SERVICES EXTERNAL,ECONOMY DIRECTORATE
Rochdale Borough Council,q1007433,13/07/2016,"68,932.98",CLYDE & CO,LEGAL SERVICES EXTERNAL,ECONOMY DIRECTORATE
Rochdale Borough Council,q1007436,13/07/2016,"6,795.00",JGM AGENCY,PUBLICITY,NEIGHBOURHOODS AND ENVIRONMENT
Rochdale Borough Council,d1059825,15/07/2016,"10,000.00",GTM ELECTRICAL SERVICES LIMITED,PROPERTY - WORKS ELEMENT,NEIGHBOURHOODS AND ENVIRONMENT
Rochdale Borough Council,d1059827,15/07/2016,"18,300.00",BALMERS GM LTD,PURCHASE OF PLANT AND MACHINERY,NEIGHBOURHOODS AND ENVIRONMENT
Rochdale Borough Council,d1059828,15/07/2016,"18,300.00",BALMERS GM LTD,PURCHASE OF PLANT AND MACHINERY,NEIGHBOURHOODS AND ENVIRONMENT
Rochdale Borough Council,d1059830,15/07/2016,"14,238.00",SSI SCHAEFER LIMITED,PURCHASE OF OTHER EQUIPMENT,NEIGHBOURHOODS AND ENVIRONMENT
Rochdale Borough Council,d1059831,15/07/2016,"14,238.00",SSI SCHAEFER LIMITED,PURCHASE OF OTHER EQUIPMENT,NEIGHBOURHOODS AND ENVIRONMENT
Rochdale Borough Council,d1059832,15/07/2016,"14,238.00",SSI SCHAEFER LIMITED,PURCHASE OF OTHER EQUIPMENT,NEIGHBOURHOODS AND ENVIRONMENT
Rochdale Borough Council,d1059834,15/07/2016,"20,575.45",EVANS HALSHAW TRAFFORD PK,PURCHASE OF VEHICLES,NEIGHBOURHOODS AND ENVIRONMENT
Rochdale Borough Council,d1059843,15/07/2016,"8,820.83",RIPON FARM SERVICES,VEHICLE MAINTENANCE,NEIGHBOURHOODS AND ENVIRONMENT
Rochdale Borough Council,d1059847,15/07/2016,"8,030.00",ROCHDALE MEMORIAL SERVICE LTD,FIXTURES & FITTINGS,NEIGHBOURHOODS AND ENVIRONMENT
Rochdale Borough Council,d1059851,15/07/2016,"9,477.79",NORTHGATE VEHICLE HIRE LIMITED,TRANSACTIONS-EXPENDITURE,NEIGHBOURHOODS AND ENVIRONMENT
Rochdale Borough Council,q1007444,15/07/2016,"51,800.00",STHREE PARTNERSHIP LLP,CAPITAL SALARIES,NEIGHBOURHOODS AND ENVIRONMENT
Rochdale Borough Council,q1007445,15/07/2016,"43,841.95",OXFORD COMPUTER CONSULTANTS LIMITED,SOFTWARE,NEIGHBOURHOODS AND ENVIRONMENT
Rochdale Borough Council,s1020579,15/07/2016,"7,710.00",BROADWAY BUILDING CONTRACTORS OLDHAM LTD,TRANSACTIONS-EXPENDITURE,PHYSICAL DIS & OLDER PEOPLE
Rochdale Borough Council,x1012767,15/07/2016,"8,243.80",JAMES BLEWETT TRAINING AND CONSULTANCY LTD,CONSULTANT FEES,CHILDREN�S SOCIAL CARE
Rochdale Borough Council,d1059859,18/07/2016,"18,390.00",JMHA,PROPERTY REFURBISHMENT (HOUSING),NEIGHBOURHOODS AND ENVIRONMENT
Rochdale Borough Council,d1059860,18/07/2016,"5,116.50",OLDHAM & ROCHDALE GROUNDWORK TRUST LTD,FEES -CONSTRUCTION CONVERSION RENOVATION,NEIGHBOURHOODS AND ENVIRONMENT
Rochdale Borough Council,d1059894,18/07/2016,"51,139.03",CHEETHAM HILL CONSTRUCTION,DEMOLITION,NEIGHBOURHOODS AND ENVIRONMENT
Rochdale Borough Council,e1021342,18/07/2016,"319,299.74",INSPIREDSPACES ROCHDALE PROJECT CO1 LTD,PFI SCHEMES RPIX,EARLY HELP AND SCHOOLS
Rochdale Borough Council,e1021348,18/07/2016,"410,538.60",INSPIREDSPACES ROCHDALE PROJECTCO2 LTD,PFI SCHEMES RPIX,EARLY HELP AND SCHOOLS
Rochdale Borough Council,r1001536,18/07/2016,"89,309.71",VBA JOINT VENTURE LTD,ENVIRONMENTAL WORKS LANDSCAPE,ECONOMY DIRECTORATE
Rochdale Borough Council,e1021367,19/07/2016,"686,423.56",AXIOM EDUCATION (ROCHDALE) LIMITED,PFI SCHEMES RPIX,EARLY HELP AND SCHOOLS
Rochdale Borough Council,e1021370,19/07/2016,"11,344.66",AURORA BEECH KEYS,OTHER LA`S - SEN PROVISION,EARLY HELP AND SCHOOLS
Rochdale Borough Council,d1059946,20/07/2016,"40,000.00",LAMBERT SMITH HAMPTON GROUP LTD,SURVEYORS FEES,ECONOMY DIRECTORATE
Rochdale Borough Council,d1059948,20/07/2016,"24,000.00",LAMBERT SMITH HAMPTON GROUP LTD,SURVEYORS FEES,ECONOMY DIRECTORATE
Rochdale Borough Council,d1059955,20/07/2016,"43,626.00",BANCROFT AMENITIES LTD,GRANTS TO VOLUNTARY BODIES,NEIGHBOURHOODS AND ENVIRONMENT
Rochdale Borough Council,e1021371,20/07/2016,"29,633.54",AXIOM EDUCATION (ROCHDALE) LIMITED,MEALS,EARLY HELP AND SCHOOLS
Rochdale Borough Council,e1021390,20/07/2016,"5,335.00",DEEPLISH ACADEMY,RENTS,EARLY HELP AND SCHOOLS
Rochdale Borough Council,e1021392,20/07/2016,"12,294.75",HORIZON CARE AND EDUCATION,OTHER LA`S - SEN PROVISION,EARLY HELP AND SCHOOLS
Rochdale Borough Council,e1021394,20/07/2016,"12,294.75",HORIZON CARE AND EDUCATION,OTHER LA`S - SEN PROVISION,EARLY HELP AND SCHOOLS
Rochdale Borough Council,e1021395,20/07/2016,"12,572.98",OLDHAM COLLEGE,OTHER EST - SEN PROVISION,EARLY HELP AND SCHOOLS
Rochdale Borough Council,e1021396,20/07/2016,"7,125.00",PSYCHOLOGY PEOPLE,BASIC SALARIES,EARLY HELP AND SCHOOLS
Rochdale Borough Council,ph101404,20/07/2016,"124,574.58",BIG LIFE CENTRES,PH BIG LIFE CONTRACT,PUBLIC HEALTH
Rochdale Borough Council,r1001537,20/07/2016,"235,802.00",VBA JOINT VENTURE LTD,ENVIRONMENTAL WORKS LANDSCAPE,ECONOMY DIRECTORATE
Rochdale Borough Council,d1059995,21/07/2016,"12,630.00",F S MOULT & SON,DEMOLITION,NEIGHBOURHOODS AND ENVIRONMENT
Rochdale Borough Council,d1060001,21/07/2016,"6,930.00",ROCHDALE BOROUGH SHOPMOBILITY,GRANTS TO THE VOLUNTARY SECTOR,ECONOMY DIRECTORATE
Rochdale Borough Council,x1012780,21/07/2016,"6,585.50",ADOPTION MATTERS NORTHWEST,CONSULTANT FEES,CHILDREN�S SOCIAL CARE
Rochdale Borough Council,x1012783,21/07/2016,"27,000.00",FAMILY CARE,ADOPTION PAYMENTS,CHILDREN�S SOCIAL CARE
Rochdale Borough Council,e1021412,22/07/2016,"166,512.83",DIOCESE OF SALFORD,IMPROVEMENTS-MODERNISATION,EARLY HELP AND SCHOOLS
Rochdale Borough Council,q1007481,22/07/2016,"7,597.15",ALIGNED ASSETS LIMITED,SOFTWARE,NEIGHBOURHOODS AND ENVIRONMENT
Rochdale Borough Council,s1020594,22/07/2016,"8,750.00",ACTION FIRST IPEOPLE LTD,FEES / COMMISSION,PHYSICAL DIS & OLDER PEOPLE
Rochdale Borough Council,s1020600,24/07/2016,"63,000.00",ELDERCARE UK LTD,TELEPHONE EXPENDITURE,PHYSICAL DIS & OLDER PEOPLE
Rochdale Borough Council,s1020601,24/07/2016,"85,000.00",EZITRACKER,SOFTWARE,LEARNING DIS & MENTAL HEALTH
Rochdale Borough Council,d1060071,25/07/2016,"20,000.00",OLDHAM & ROCHDALE GROUNDWORK TRUST LTD,FEES -CONSTRUCTION CONVERSION RENOVATION,NEIGHBOURHOODS AND ENVIRONMENT
Rochdale Borough Council,d1060073,25/07/2016,"9,750.00",DDH FABRICATIONS LTD,EQUIPMENT - GENERAL,NEIGHBOURHOODS AND ENVIRONMENT
Rochdale Borough Council,s1020602,25/07/2016,"32,500.00",COUNCIL FOR VOLUNTARY SERVICE ROCHDALE,VOLUNTARY ASSOCIATIONS,PHYSICAL DIS & OLDER PEOPLE
Rochdale Borough Council,s1020609,25/07/2016,"6,450.00",ADAPT BUILDING SERVICES LTD,IMPROVEMENTS-EXTENSIONS & ALTERATIONS,PHYSICAL DIS & OLDER PEOPLE
Rochdale Borough Council,w1001530,25/07/2016,"28,008.08",THE STROKE ASSOCIATION,VOLUNTARY ASSOCIATIONS,BETTER CARE FUND POOLED BUDGET
Rochdale Borough Council,x1012791,25/07/2016,"9,000.00",CARITAS CARE LTD,ADOPTION PAYMENTS,CHILDREN�S SOCIAL CARE
Rochdale Borough Council,d1060111,26/07/2016,"8,316.75",THE FOUNTAIN COMPANY LTD,REPAIRS & ALTS OF BUILDINGS,NEIGHBOURHOODS AND ENVIRONMENT
Rochdale Borough Council,d1060113,26/07/2016,"9,913.66",THE FOUNTAIN COMPANY LTD,REPAIRS & ALTS OF BUILDINGS,NEIGHBOURHOODS AND ENVIRONMENT
Rochdale Borough Council,d1060114,26/07/2016,"8,960.92",THE FOUNTAIN COMPANY LTD,REPAIRS & ALTS OF BUILDINGS,NEIGHBOURHOODS AND ENVIRONMENT
Rochdale Borough Council,d1060115,26/07/2016,"8,148.85",THE FOUNTAIN COMPANY LTD,REPAIRS & ALTS OF BUILDINGS,NEIGHBOURHOODS AND ENVIRONMENT
Rochdale Borough Council,d1060116,26/07/2016,"9,913.66",THE FOUNTAIN COMPANY LTD,REPAIRS & ALTS OF BUILDINGS,NEIGHBOURHOODS AND ENVIRONMENT
Rochdale Borough Council,w1001532,26/07/2016,"28,008.08",THE STROKE ASSOCIATION,VOLUNTARY ASSOCIATIONS,BETTER CARE FUND POOLED BUDGET
Rochdale Borough Council,d1060152,27/07/2016,"8,131.00",J GREENWOOD (BUILDERS) LIMITED,TRANSACTIONS-EXPENDITURE,PROPERTY AND HIGHWAYS
Rochdale Borough Council,q1007505,27/07/2016,"10,811.00",7 PDS,TRANSACTIONS-EXPENDITURE,NEIGHBOURHOODS AND ENVIRONMENT
Rochdale Borough Council,d1060168,28/07/2016,"353,641.79",COMMUNITY LIGHTING PARTNERSHIP ROCHDALE LTD,PFI SCHEMES RPIX,PROPERTY AND HIGHWAYS
Rochdale Borough Council,d1060187,28/07/2016,"13,089.60",SSI SCHAEFER LIMITED,PURCHASE OF OTHER EQUIPMENT,NEIGHBOURHOODS AND ENVIRONMENT
Rochdale Borough Council,e1021449,28/07/2016,"7,680.20",AXIOM EDUCATION (ROCHDALE) LIMITED,"DEV CAP - NEW CONSTRUCTION,CONVERSION",EARLY HELP AND SCHOOLS
Rochdale Borough Council,d1060192,29/07/2016,"16,060.00",ROCHDALE MEMORIAL SERVICE LTD,FIXTURES & FITTINGS,NEIGHBOURHOODS AND ENVIRONMENT
Rochdale Borough Council,e1021460,29/07/2016,"6,793.00",BOLTON  COLLEGE,OTHER EST - SEN PROVISION,EARLY HELP AND SCHOOLS
Rochdale Borough Council,e1021461,29/07/2016,"6,793.00",BOLTON  COLLEGE,OTHER EST - SEN PROVISION,EARLY HELP AND SCHOOLS
Rochdale Borough Council,e1021471,29/07/2016,"5,200.00",OPEN OBJECTS SOFTWARE LTD,REPROGRAPHIC EXPENSES,EARLY HELP AND SCHOOLS
Rochdale Borough Council,r1001540,29/07/2016,"9,077.86",URBAN VISION PARTNERSHIP LTD,AGENCY STAFF,ECONOMY DIRECTORATE
Rochdale Borough Council,d1060215,01/08/2016,"27,000.00",EMO OIL LIMITED,TRANSACTIONS-EXPENDITURE,CONTROL ACCOUNT
Rochdale Borough Council,d1060232,01/08/2016,"30,000.00",TAMESIDE METROPOLITAN BOROUGH COUNCIL,CONTRACTED SERVICES,NEIGHBOURHOODS AND ENVIRONMENT
Rochdale Borough Council,ph101420,01/08/2016,"90,750.00",PENNINE CARE NHS,PH PENNINE CARE CONTRACT,PUBLIC HEALTH
Rochdale Borough Council,q1007519,01/08/2016,"8,000.00",AON LIMITED,INSURANCE,FINANCE SERVICES
Rochdale Borough Council,q1007524,01/08/2016,"5,000.00",DELIB,SOFTWARE,NEIGHBOURHOODS AND ENVIRONMENT
Rochdale Borough Council,q1007525,01/08/2016,"7,360.00",TURNING POINT SERVICES LIMITED,CONTRACTED SERVICES,NEIGHBOURHOODS AND ENVIRONMENT
Rochdale Borough Council,r1001541,01/08/2016,"5,202.00",LINK4LIFE (CHARITY),ACTIVITIES,ECONOMY DIRECTORATE
Rochdale Borough Council,d1060248,02/08/2016,"12,000.00",LAMBERT SMITH HAMPTON GROUP LTD,SURVEYORS FEES,ECONOMY DIRECTORATE
Rochdale Borough Council,d1060251,02/08/2016,"14,500.00",ROCHDALE MEMORIAL SERVICE,MINOR BUILDING WORKS,ECONOMY DIRECTORATE
Rochdale Borough Council,d1060252,02/08/2016,"11,331.20",ROCHDALE MEMORIAL SERVICE,MINOR BUILDING WORKS,ECONOMY DIRECTORATE
Rochdale Borough Council,d1060253,02/08/2016,"17,425.00",JEREMY BENN ASSOCIATES LTD,GRANTS TO THE NON VOLUNTARY SECTOR,NEIGHBOURHOODS AND ENVIRONMENT
Rochdale Borough Council,d1060254,02/08/2016,"13,237.50",ROCHDALE TOWN CENTRE MANAGEMENT CO,GRANTS TO THE NON VOLUNTARY SECTOR,ECONOMY DIRECTORATE
Rochdale Borough Council,d1060264,02/08/2016,"7,528.16",ENTERPRISE FLEX-E-RENT,TRANSACTIONS-EXPENDITURE,NEIGHBOURHOODS AND ENVIRONMENT
Rochdale Borough Council,d1060280,02/08/2016,"138,262.20",RIVERSIDE TRUCK RENTAL,LONG TERM CONTRACTED EXTERNAL HIRE,NEIGHBOURHOODS AND ENVIRONMENT
Rochdale Borough Council,q1007530,02/08/2016,"900,000.00",TOPMARK CLAIMS MANAGEMENT LTD IMPREST,TRANSACTIONS-EXPENDITURE,FINANCE SERVICES
Rochdale Borough Council,d1060299,03/08/2016,"24,381.99",CROMWELL POLYTHENE LIMITED,EQUIPMENT - GENERAL,NEIGHBOURHOODS AND ENVIRONMENT
Rochdale Borough Council,d1060312,03/08/2016,"18,000.00",THE SANCTUARY TRUST,GRANTS TO THE VOLUNTARY SECTOR,NEIGHBOURHOODS AND ENVIRONMENT
Rochdale Borough Council,d1060313,03/08/2016,"35,000.00",OLDHAM & ROCHDALE GROUNDWORK TRUST LTD,FEES -CONSTRUCTION CONVERSION RENOVATION,NEIGHBOURHOODS AND ENVIRONMENT
Rochdale Borough Council,e1021492,03/08/2016,"11,197.34",BELMONT SCHOOL LIMITED,OTHER LA`S - SEN PROVISION,EARLY HELP AND SCHOOLS
Rochdale Borough Council,e1021493,03/08/2016,"11,197.34",BELMONT SCHOOL LIMITED,OTHER LA`S - SEN PROVISION,EARLY HELP AND SCHOOLS
Rochdale Borough Council,e1021494,03/08/2016,"10,871.16",BELMONT SCHOOL LIMITED,OTHER LA`S - SEN PROVISION,EARLY HELP AND SCHOOLS
Rochdale Borough Council,e1021495,03/08/2016,"10,977.66",BELMONT SCHOOL LIMITED,OTHER LA`S - SEN PROVISION,EARLY HELP AND SCHOOLS
Rochdale Borough Council,e1021496,03/08/2016,"10,977.66",BELMONT SCHOOL LIMITED,OTHER LA`S - SEN PROVISION,EARLY HELP AND SCHOOLS
Rochdale Borough Council,e1021497,03/08/2016,"11,197.33",BELMONT SCHOOL LIMITED,OTHER LA`S - SEN PROVISION,EARLY HELP AND SCHOOLS
Rochdale Borough Council,e1021498,03/08/2016,"11,197.33",BELMONT SCHOOL LIMITED,OTHER LA`S - SEN PROVISION,EARLY HELP AND SCHOOLS
Rochdale Borough Council,e1021499,03/08/2016,"32,470.00",PONTVILLE SCHOOL,OTHER EST - SEN PROVISION,EARLY HELP AND SCHOOLS
Rochdale Borough Council,e1021501,03/08/2016,"6,793.00",BOLTON  COLLEGE,OTHER EST - SEN PROVISION,EARLY HELP AND SCHOOLS
Rochdale Borough Council,q1007547,03/08/2016,"18,200.00",STHREE PARTNERSHIP LLP,CAPITAL SALARIES,NEIGHBOURHOODS AND ENVIRONMENT
Rochdale Borough Council,q1007549,03/08/2016,"10,140.00",STHREE PARTNERSHIP LLP,CAPITAL SALARIES,NEIGHBOURHOODS AND ENVIRONMENT
Rochdale Borough Council,q1007550,03/08/2016,"36,400.00",STHREE PARTNERSHIP LLP,CAPITAL SALARIES,NEIGHBOURHOODS AND ENVIRONMENT
Rochdale Borough Council,x1012830,03/08/2016,"8,654.34",SPORT WORKS,ACTIVITIES,EARLY HELP AND SCHOOLS
Rochdale Borough Council,d1060322,04/08/2016,"82,630.00",D HUGHES DEMOLITION,DEMOLITION,NEIGHBOURHOODS AND ENVIRONMENT
Rochdale Borough Council,d1060323,04/08/2016,"26,910.50",D HUGHES DEMOLITION,DEMOLITION,NEIGHBOURHOODS AND ENVIRONMENT
Rochdale Borough Council,d1060324,04/08/2016,"14,609.55",F S MOULT & SON,DEMOLITION,NEIGHBOURHOODS AND ENVIRONMENT
Rochdale Borough Council,d1060328,04/08/2016,"5,933.50",OLDHAM & ROCHDALE GROUNDWORK TRUST LTD,FEES -CONSTRUCTION CONVERSION RENOVATION,NEIGHBOURHOODS AND ENVIRONMENT
Rochdale Borough Council,q1007556,04/08/2016,"5,548.80",CLYDE & CO,LEGAL SERVICES EXTERNAL,ECONOMY DIRECTORATE
Rochdale Borough Council,x1012833,04/08/2016,"13,072.00",OLDHAM MBC,CONSULTANT FEES,CHILDREN�S SOCIAL CARE
Rochdale Borough Council,f1004778,05/08/2016,"5,895.00",OLDHAM METROPOLITAN BOROUGH COUNCIL,AGMA,FINANCE SERVICES
Rochdale Borough Council,d1060399,08/08/2016,"8,447.12",CIVICA UK LIMITED,ICT,NEIGHBOURHOODS AND ENVIRONMENT
Rochdale Borough Council,d1060412,08/08/2016,"10,300.00",PETRUS,GRANTS TO THE VOLUNTARY SECTOR,NEIGHBOURHOODS AND ENVIRONMENT
Rochdale Borough Council,e1021542,08/08/2016,"537,101.61",INSPIREDSPACES ROCHDALE PROJECT CO1 LTD,IMPROVEMENTS-MODERNISATION,EARLY HELP AND SCHOOLS
Rochdale Borough Council,e1021543,08/08/2016,"11,378.00",INSPIREDSPACES ROCHDALE PROJECT CO1 LTD,IMPROVEMENTS-MODERNISATION,EARLY HELP AND SCHOOLS
Rochdale Borough Council,e1021545,08/08/2016,"17,131.50",AXIOM EDUCATION (ROCHDALE) LIMITED,MEALS,EARLY HELP AND SCHOOLS
Rochdale Borough Council,q1007570,08/08/2016,"5,602.50",JGM AGENCY,PUBLICITY,NEIGHBOURHOODS AND ENVIRONMENT
Rochdale Borough Council,s1020662,08/08/2016,"8,800.00",NEWLINE ADAPTATIONS LTD,IMPROVEMENTS-EXTENSIONS & ALTERATIONS,PHYSICAL DIS & OLDER PEOPLE
Rochdale Borough Council,s1020671,08/08/2016,"9,450.00",ACTION FIRST IPEOPLE LTD,FEES / COMMISSION,PHYSICAL DIS & OLDER PEOPLE
Rochdale Borough Council,x1012838,08/08/2016,"7,000.00",CHRISTINE FOSTER LIMITED,AGENCY STAFF,CHILDREN�S SOCIAL CARE
Rochdale Borough Council,d1060424,09/08/2016,"11,511.20",SPEAKMAN CONTRACTORS LTD,IMPROVEMENTS-MODERNISATION,ECONOMY DIRECTORATE
Rochdale Borough Council,d1060450,09/08/2016,"8,000.00",ROCHDALE TOWN CENTRE MANAGEMENT CO,EVENTS,ECONOMY DIRECTORATE
Rochdale Borough Council,e1021550,09/08/2016,"403,084.24",INSPIREDSPACES ROCHDALE PROJECTCO2 LTD,PFI SCHEMES RPIX,EARLY HELP AND SCHOOLS
Rochdale Borough Council,f1004784,09/08/2016,"22,500.00",GRANT THORNTON UK LPP,TRAINING,FINANCE SERVICES
Rochdale Borough Council,d1060456,10/08/2016,"7,785.00",CHRISTMAS PLUS LTD,CHRISTMAS DECORATIONS,PROPERTY AND HIGHWAYS
Rochdale Borough Council,d1060463,10/08/2016,"9,400.00",GMCA,ROADWORKS,PROPERTY AND HIGHWAYS
Rochdale Borough Council,e1021559,10/08/2016,"673,299.66",AXIOM EDUCATION (ROCHDALE) LIMITED,PFI SCHEMES RPIX,EARLY HELP AND SCHOOLS
Rochdale Borough Council,e1021563,10/08/2016,"322,472.19",INSPIREDSPACES ROCHDALE PROJECT CO1 LTD,PFI SCHEMES RPIX,EARLY HELP AND SCHOOLS
Rochdale Borough Council,f1004786,10/08/2016,"6,051.49",CO-OP PAYPOINT,BANK CHARGES,FINANCE SERVICES
Rochdale Borough Council,q1007586,10/08/2016,"8,982.52",UPDATA INFRASTRUCTURE UK LTD,COMMUNICATION AND COMPUTING - GENERAL,NEIGHBOURHOODS AND ENVIRONMENT
Rochdale Borough Council,q1007588,10/08/2016,"6,000.00",G W THEATRE COMPANY LIMITED,GRANTS TO THE NON VOLUNTARY SECTOR,NEIGHBOURHOODS AND ENVIRONMENT
Rochdale Borough Council,q1007592,10/08/2016,"14,218.47",AON LIMITED,TRANSACTIONS-EXPENDITURE,FINANCE SERVICES
Rochdale Borough Council,q1007593,10/08/2016,"9,738.35",NORTH WEST EMPLOYERS,TRAINING,FINANCE SERVICES
Rochdale Borough Council,d1060510,11/08/2016,"8,069.00",JSC PLAYSERVICES LIMITED,IMPROVEMENTS-MODERNISATION,NEIGHBOURHOODS AND ENVIRONMENT
Rochdale Borough Council,d1060511,11/08/2016,"7,601.04",ENTERPRISE FLEX-E-RENT,TRANSACTIONS-EXPENDITURE,NEIGHBOURHOODS AND ENVIRONMENT
Rochdale Borough Council,d1060512,11/08/2016,"6,825.00",GO PLANT LIMITED,TRANSACTIONS-EXPENDITURE,NEIGHBOURHOODS AND ENVIRONMENT
Rochdale Borough Council,d1060516,11/08/2016,"14,238.00",SSI SCHAEFER LIMITED,PURCHASE OF OTHER EQUIPMENT,NEIGHBOURHOODS AND ENVIRONMENT
Rochdale Borough Council,e1021571,12/08/2016,"16,720.00",ARC SCHOOL,OTHER LA`S - SEN PROVISION,EARLY HELP AND SCHOOLS
Rochdale Borough Council,f1004789,12/08/2016,"42,475.25",MERITEC LIMITED,AGENCY STAFF,FINANCE SERVICES
Rochdale Borough Council,f1004790,12/08/2016,"46,879.75",MERITEC LIMITED,AGENCY STAFF,FINANCE SERVICES
Rochdale Borough Council,x1012848,12/08/2016,"16,425.00",CATHERINE HOW SCHOOL EFFECTIVENESS PARTNER SERVICE,CURRICULUM DEVELOPMENT,EARLY HELP AND SCHOOLS
Rochdale Borough Council,d1060554,15/08/2016,"27,000.00",EMO OIL LIMITED,TRANSACTIONS-EXPENDITURE,CONTROL ACCOUNT
Rochdale Borough Council,d1060558,15/08/2016,"9,803.53",NORTHGATE VEHICLE HIRE LIMITED,TRANSACTIONS-EXPENDITURE,NEIGHBOURHOODS AND ENVIRONMENT
Rochdale Borough Council,d1060559,15/08/2016,"12,039.40",NORTHGATE VEHICLE HIRE LIMITED,TRANSACTIONS-EXPENDITURE,NEIGHBOURHOODS AND ENVIRONMENT
Rochdale Borough Council,d1060577,15/08/2016,"9,284.16",PROFILE SECURITY SERVICES LIMITED,CONTRACTED SERVICES,NEIGHBOURHOODS AND ENVIRONMENT
Rochdale Borough Council,q1007611,15/08/2016,"11,500.00",TURNING POINT SERVICES LIMITED,CONTRACTED SERVICES,NEIGHBOURHOODS AND ENVIRONMENT
Rochdale Borough Council,d1060597,16/08/2016,"8,000.00",ROCHDALE TOWN CENTRE MANAGEMENT CO,EVENTS,ECONOMY DIRECTORATE
Rochdale Borough Council,e1021585,16/08/2016,"44,100.00",POSITIVE STEPS,EXTERNALLY MANAGED FUNDS,EARLY HELP AND SCHOOLS
Rochdale Borough Council,ph101441,16/08/2016,"30,028.91",BRAHM FUNDCO 1 LTD,RENTS,PUBLIC HEALTH
Rochdale Borough Council,d1060633,17/08/2016,"17,670.00",F S MOULT & SON,DEMOLITION,NEIGHBOURHOODS AND ENVIRONMENT
Rochdale Borough Council,d1060651,17/08/2016,"122,276.00",COMPASS MINERALS UK LIMITED,MAINTENANCE,PROPERTY AND HIGHWAYS
Rochdale Borough Council,ph101443,17/08/2016,"42,261.87",BRAHM FUNDCO 1 LTD,RENTS,PUBLIC HEALTH
Rochdale Borough Council,d1060683,18/08/2016,"7,650.00",F S MOULT & SON,"DEV CAP - NEW CONSTRUCTION,CONVERSION",EARLY HELP AND SCHOOLS
Rochdale Borough Council,d1060684,18/08/2016,"20,000.00",A E YATES LTD,REPAIRS & ALTS OF BUILDINGS,EARLY HELP AND SCHOOLS
Rochdale Borough Council,d1060685,18/08/2016,"13,806.25",H2O FLOWTECH LTD,IMPROVEMENTS-MODERNISATION,EARLY HELP AND SCHOOLS
Rochdale Borough Council,d1060687,18/08/2016,"349,076.13",COMMUNITY LIGHTING PARTNERSHIP ROCHDALE LTD,PFI SCHEMES RPIX,PROPERTY AND HIGHWAYS
Rochdale Borough Council,d1060689,18/08/2016,"9,475.00",UNITY PARTNERSHIP LTD,CONSULTANT FEES,PROPERTY AND HIGHWAYS
Rochdale Borough Council,w1001545,18/08/2016,"502,947.33",THE PENNINE ACUTE HOSPITALS NHS TRUST,CONTRACTS,BETTER CARE FUND POOLED BUDGET
Rochdale Borough Council,w1001546,18/08/2016,"50,577.31",ROSS CARE,CONTRACTS,BETTER CARE FUND POOLED BUDGET
Rochdale Borough Council,w1001547,18/08/2016,"66,209.24",ROSS CARE,CONTRACTS,BETTER CARE FUND POOLED BUDGET
Rochdale Borough Council,r1001544,19/08/2016,"20,000.00",AMION CONSULTING LTD,CONSULTANT FEES,ECONOMY DIRECTORATE
Rochdale Borough Council,d1060718,22/08/2016,"28,530.95",TG PRODUCTION SUPPLY LTD,EVENTS,ECONOMY DIRECTORATE
Rochdale Borough Council,d1060719,22/08/2016,"9,586.50",TG EVENTS LTD,EVENTS,ECONOMY DIRECTORATE
Rochdale Borough Council,d1060739,22/08/2016,"33,990.00",JEREMY BENN ASSOCIATES LTD,GRANTS TO THE NON VOLUNTARY SECTOR,NEIGHBOURHOODS AND ENVIRONMENT
Rochdale Borough Council,q1007640,22/08/2016,"5,500.00",LIZ KUNDI,TRAINING,FINANCE SERVICES
Rochdale Borough Council,q1007641,22/08/2016,"43,132.55",NHS HEYWOOD MIDDLETON AND ROCHDALE CCG,CONTRACTED SERVICES,NEIGHBOURHOODS AND ENVIRONMENT
Rochdale Borough Council,s1020713,22/08/2016,"5,475.00",ADAPT BUILDING SERVICES LTD,NEW CONSTRUCTION,PHYSICAL DIS & OLDER PEOPLE
Rochdale Borough Council,w1001548,22/08/2016,"52,723.52",ROSS CARE,OTHER AGENCIES,BETTER CARE FUND POOLED BUDGET
Rochdale Borough Council,s1020715,23/08/2016,"5,595.00",D W TAYLOR & SON,IMPROVEMENTS-EXTENSIONS & ALTERATIONS,PHYSICAL DIS & OLDER PEOPLE
Rochdale Borough Council,x1012870,23/08/2016,"9,000.00",BARNARDOS,ADOPTION PAYMENTS,CHILDREN�S SOCIAL CARE
Rochdale Borough Council,x1012876,23/08/2016,"12,044.00",CAREERVISION LTD,SOFTWARE,CHILDREN�S SOCIAL CARE
Rochdale Borough Council,d1060793,24/08/2016,"14,355.00",F S MOULT & SON,IMPROVEMENTS-MODERNISATION,NEIGHBOURHOODS AND ENVIRONMENT
Rochdale Borough Council,d1060799,24/08/2016,"143,775.27",TURNER AND  TOWNSEND,OTHER SURVEYS,ECONOMY DIRECTORATE
Rochdale Borough Council,ph101448,24/08/2016,"355,419.00",PENNINE CARE NHS,PH PENNINE CARE CONTRACT,PUBLIC HEALTH
Rochdale Borough Council,q1007650,25/08/2016,"21,958.32",BINDMONT PRINT SERVICES LTD,PRINTING & STATIONERY,FINANCE SERVICES
Rochdale Borough Council,s1020719,25/08/2016,"6,300.00",ACTION FIRST IPEOPLE LTD,FEES / COMMISSION,PHYSICAL DIS & OLDER PEOPLE
Rochdale Borough Council,e1021637,30/08/2016,"50,784.80",TRANSPORT FOR GREATER MANCHESTER,STUDENT TRAVEL,EARLY HELP AND SCHOOLS
Rochdale Borough Council,e1021640,30/08/2016,"10,977.66",BELMONT SCHOOL LIMITED,OTHER LA`S - SEN PROVISION,EARLY HELP AND SCHOOLS
Rochdale Borough Council,e1021641,30/08/2016,"10,977.66",BELMONT SCHOOL LIMITED,OTHER LA`S - SEN PROVISION,EARLY HELP AND SCHOOLS
Rochdale Borough Council,q1007660,30/08/2016,"17,507.83",NORTHGATE PUBLIC SERVICES (UK) LTD,SOFTWARE,NEIGHBOURHOODS AND ENVIRONMENT
Rochdale Borough Council,s1020725,30/08/2016,"10,070.00",MACK4 LIMITED,IMPROVEMENTS-EXTENSIONS & ALTERATIONS,PHYSICAL DIS & OLDER PEOPLE
Rochdale Borough Council,d1060893,31/08/2016,"17,000.00",GMCA,ROADWORKS,PROPERTY AND HIGHWAYS
Rochdale Borough Council,e1021646,31/08/2016,"43,987.40",BURY MBC,OTHER EST - SEN PROVISION,EARLY HELP AND SCHOOLS
Rochdale Borough Council,e1021647,31/08/2016,"27,767.47",BURY MBC,OTHER EST - SEN PROVISION,EARLY HELP AND SCHOOLS
Rochdale Borough Council,e1021650,31/08/2016,"374,415.15",INSPIREDSPACES ROCHDALE LTD,NEW CONSTRUCTION,EARLY HELP AND SCHOOLS
Rochdale Borough Council,e1021656,01/09/2016,"326,248.99",INSPIREDSPACES ROCHDALE PROJECT CO1 LTD,PFI SCHEMES RPIX,EARLY HELP AND SCHOOLS
Rochdale Borough Council,ph101456,01/09/2016,"90,750.00",PENNINE CARE NHS,PH PENNINE CARE CONTRACT,PUBLIC HEALTH
Rochdale Borough Council,d1060948,02/09/2016,"7,500.00",ROCHDALE BOROUGHWIDE HOUSING,ROADWORKS,PROPERTY AND HIGHWAYS
Rochdale Borough Council,d1060949,02/09/2016,"9,558.30",TYRE FORCE NW LTD,TYRES,NEIGHBOURHOODS AND ENVIRONMENT
Rochdale Borough Council,ph101458,02/09/2016,"11,000.00",BLACK HEALTH AGENCY,PH BUSINESS CASES,PUBLIC HEALTH
Rochdale Borough Council,s1020738,02/09/2016,"8,750.00",ACTION FIRST IPEOPLE LTD,FEES / COMMISSION,PHYSICAL DIS & OLDER PEOPLE
Rochdale Borough Council,d1060957,05/09/2016,"5,195.00",TLC GARDEN SERVICES,SITE CLEARANCE -ENVIRONMENTAL WORKS,NEIGHBOURHOODS AND ENVIRONMENT
Rochdale Borough Council,d1060971,05/09/2016,"9,396.14",PROFILE SECURITY SERVICES LIMITED,CONTRACTED SERVICES,NEIGHBOURHOODS AND ENVIRONMENT
Rochdale Borough Council,d1060979,05/09/2016,"14,682.88",BGS LTD,MINOR BUILDING WORKS,EARLY HELP AND SCHOOLS
Rochdale Borough Council,d1060986,05/09/2016,"18,736.00",D AND M DEMOLITION AND RECYCLING LTD,DEMOLITION,NEIGHBOURHOODS AND ENVIRONMENT
Rochdale Borough Council,d1060990,05/09/2016,"5,426.40",PROFILE SECURITY SERVICES LIMITED,SECURITY,NEIGHBOURHOODS AND ENVIRONMENT
Rochdale Borough Council,e1021666,05/09/2016,"409,629.30",INSPIREDSPACES ROCHDALE PROJECTCO2 LTD,PFI SCHEMES RPIX,EARLY HELP AND SCHOOLS
Rochdale Borough Council,q1007695,05/09/2016,"12,000.00",XPRESS SOFTWARE SOLUTIONS LTD,SOFTWARE,FINANCE SERVICES
Rochdale Borough Council,w1001553,05/09/2016,"5,247.00",ROCHDALE GATEWAY LEISURE LIMITED,WEEKEND RESPITE,LEARNING DIS & MENTAL HEALTH
Rochdale Borough Council,w1001554,05/09/2016,"15,458.00",PM PROPERTIES,RENTS,LEARNING DIS & MENTAL HEALTH
Rochdale Borough Council,d1061003,06/09/2016,"23,963.00",PERMASTEELISA  UK LTD,REPAIRS & ALTS OF BUILDINGS,NEIGHBOURHOODS AND ENVIRONMENT
Rochdale Borough Council,d1061013,06/09/2016,"12,026.75",J COONEY LTD,ROADWORKS,EARLY HELP AND SCHOOLS
Rochdale Borough Council,d1061017,06/09/2016,"14,880.00",NO WORRIES IT LTD,TRAINING,ECONOMY DIRECTORATE
Rochdale Borough Council,q1007703,06/09/2016,"5,130.00",JGM AGENCY,PUBLICITY,NEIGHBOURHOODS AND ENVIRONMENT
Rochdale Borough Council,r1001546,06/09/2016,"6,896.44",URBAN VISION PARTNERSHIP LTD,AGENCY STAFF,ECONOMY DIRECTORATE
Rochdale Borough Council,w1001556,06/09/2016,"21,419.00",FRIENDS OF OLDER PARENT CARERS,VOLUNTARY ASSOCIATIONS,LEARNING DIS & MENTAL HEALTH
Rochdale Borough Council,d1061025,07/09/2016,"5,000.00",MR GED MASON,TAXI HIRE,NEIGHBOURHOODS AND ENVIRONMENT
Rochdale Borough Council,d1061026,07/09/2016,"14,580.00",LK CONSULT LTD,MINOR BUILDING WORKS,NEIGHBOURHOODS AND ENVIRONMENT
Rochdale Borough Council,d1061040,07/09/2016,"20,874.85",OPENREACH BILLING TEAM CNS,MINOR BUILDING WORKS,PROPERTY AND HIGHWAYS
Rochdale Borough Council,d1061042,07/09/2016,"17,868.00",J AND S TRAVEL,TAXI HIRE,NEIGHBOURHOODS AND ENVIRONMENT
Rochdale Borough Council,d1061043,07/09/2016,"16,837.00",J AND S TRAVEL,TAXI HIRE,NEIGHBOURHOODS AND ENVIRONMENT
Rochdale Borough Council,d1061044,07/09/2016,"16,253.00",J AND S TRAVEL,TAXI HIRE,NEIGHBOURHOODS AND ENVIRONMENT
Rochdale Borough Council,d1061045,07/09/2016,"17,680.00",J AND S TRAVEL,TAXI HIRE,NEIGHBOURHOODS AND ENVIRONMENT
Rochdale Borough Council,d1061046,07/09/2016,"11,050.00",COACH OPTIONS LIMITED,TAXI HIRE,NEIGHBOURHOODS AND ENVIRONMENT
Rochdale Borough Council,d1061047,07/09/2016,"12,415.00",COACH OPTIONS LIMITED,TAXI HIRE,NEIGHBOURHOODS AND ENVIRONMENT
Rochdale Borough Council,d1061048,07/09/2016,"12,350.00",COACH OPTIONS LIMITED,TAXI HIRE,NEIGHBOURHOODS AND ENVIRONMENT
Rochdale Borough Council,d1061049,07/09/2016,"19,468.00",ROYTON MINIBUSES LIMITED,TAXI HIRE,NEIGHBOURHOODS AND ENVIRONMENT
Rochdale Borough Council,d1061050,07/09/2016,"17,713.00",ROYTON MINIBUSES LIMITED,TAXI HIRE,NEIGHBOURHOODS AND ENVIRONMENT
Rochdale Borough Council,d1061051,07/09/2016,"19,806.00",ROYTON MINIBUSES LIMITED,TAXI HIRE,NEIGHBOURHOODS AND ENVIRONMENT
Rochdale Borough Council,d1061053,07/09/2016,"9,745.00",DK MINIBUSES LTD,TAXI HIRE,NEIGHBOURHOODS AND ENVIRONMENT
Rochdale Borough Council,d1061054,07/09/2016,"16,460.00",DALE INDUSTRIAL SERVICES LIMITED,TAXI HIRE,NEIGHBOURHOODS AND ENVIRONMENT
Rochdale Borough Council,d1061055,07/09/2016,"17,025.00",DALE INDUSTRIAL SERVICES LIMITED,TAXI HIRE,NEIGHBOURHOODS AND ENVIRONMENT
Rochdale Borough Council,d1061056,07/09/2016,"16,366.00",DALE INDUSTRIAL SERVICES LIMITED,TAXI HIRE,NEIGHBOURHOODS AND ENVIRONMENT
Rochdale Borough Council,d1061057,07/09/2016,"16,471.00",DALE INDUSTRIAL SERVICES LIMITED,TAXI HIRE,NEIGHBOURHOODS AND ENVIRONMENT
Rochdale Borough Council,d1061058,07/09/2016,"15,053.00",DALE INDUSTRIAL SERVICES LIMITED,TAXI HIRE,NEIGHBOURHOODS AND ENVIRONMENT
Rochdale Borough Council,d1061059,07/09/2016,"17,025.00",DALE INDUSTRIAL SERVICES LIMITED,TAXI HIRE,NEIGHBOURHOODS AND ENVIRONMENT
Rochdale Borough Council,d1061060,07/09/2016,"17,150.00",OLYMPIC EXECUTIVE TRAVEL,TAXI HIRE,NEIGHBOURHOODS AND ENVIRONMENT
Rochdale Borough Council,d1061061,07/09/2016,"13,052.00",OLYMPIC EXECUTIVE TRAVEL,TAXI HIRE,NEIGHBOURHOODS AND ENVIRONMENT
Rochdale Borough Council,d1061062,07/09/2016,"14,159.00",OLYMPIC EXECUTIVE TRAVEL,TAXI HIRE,NEIGHBOURHOODS AND ENVIRONMENT
Rochdale Borough Council,d1061063,07/09/2016,"16,157.00",OLYMPIC EXECUTIVE TRAVEL,TAXI HIRE,NEIGHBOURHOODS AND ENVIRONMENT
Rochdale Borough Council,d1061064,07/09/2016,"13,129.00",OLYMPIC EXECUTIVE TRAVEL,TAXI HIRE,NEIGHBOURHOODS AND ENVIRONMENT
Rochdale Borough Council,d1061067,07/09/2016,"22,783.00",ROYTON MINIBUSES LIMITED,TAXI HIRE,NEIGHBOURHOODS AND ENVIRONMENT
Rochdale Borough Council,d1061068,07/09/2016,"23,173.00",ROYTON MINIBUSES LIMITED,TAXI HIRE,NEIGHBOURHOODS AND ENVIRONMENT
Rochdale Borough Council,d1061069,07/09/2016,"20,638.00",ROYTON MINIBUSES LIMITED,TAXI HIRE,NEIGHBOURHOODS AND ENVIRONMENT
Rochdale Borough Council,d1061073,07/09/2016,"21,159.00",GPD TRAVEL,TAXI HIRE,NEIGHBOURHOODS AND ENVIRONMENT
Rochdale Borough Council,d1061082,07/09/2016,"13,853.00",CAR 2000 HEYWOOD LLP,TAXI HIRE,NEIGHBOURHOODS AND ENVIRONMENT
Rochdale Borough Council,d1061083,07/09/2016,"16,156.00",S P EXECUTIVE TRAVEL,TAXI HIRE,NEIGHBOURHOODS AND ENVIRONMENT
Rochdale Borough Council,d1061084,07/09/2016,"10,016.00",S P EXECUTIVE TRAVEL,TAXI HIRE,NEIGHBOURHOODS AND ENVIRONMENT
Rochdale Borough Council,d1061085,07/09/2016,"15,736.00",S P EXECUTIVE TRAVEL,TAXI HIRE,NEIGHBOURHOODS AND ENVIRONMENT
Rochdale Borough Council,d1061086,07/09/2016,"5,187.00",STREAMLINE TAXIS,TAXI HIRE,NEIGHBOURHOODS AND ENVIRONMENT
Rochdale Borough Council,d1061087,07/09/2016,"5,967.00",STREAMLINE TAXIS,TAXI HIRE,NEIGHBOURHOODS AND ENVIRONMENT
Rochdale Borough Council,d1061088,07/09/2016,"6,630.00",STREAMLINE TAXIS,TAXI HIRE,NEIGHBOURHOODS AND ENVIRONMENT
Rochdale Borough Council,d1061089,07/09/2016,"7,371.00",STREAMLINE TAXIS,TAXI HIRE,NEIGHBOURHOODS AND ENVIRONMENT
Rochdale Borough Council,d1061090,07/09/2016,"7,098.00",STREAMLINE TAXIS,TAXI HIRE,NEIGHBOURHOODS AND ENVIRONMENT
Rochdale Borough Council,d1061091,07/09/2016,"6,123.00",STREAMLINE TAXIS,TAXI HIRE,NEIGHBOURHOODS AND ENVIRONMENT
Rochdale Borough Council,d1061092,07/09/2016,"9,641.00",ANDY HARROP,TAXI HIRE,NEIGHBOURHOODS AND ENVIRONMENT
Rochdale Borough Council,d1061093,07/09/2016,"10,244.00",COZY CARS,TAXI HIRE,NEIGHBOURHOODS AND ENVIRONMENT
Rochdale Borough Council,d1061094,07/09/2016,"5,713.00",ROCHDALE TOWN TAXIS LTD,TAXI HIRE,NEIGHBOURHOODS AND ENVIRONMENT
Rochdale Borough Council,d1061095,07/09/2016,"10,920.00",CONNECT CARS MIDDLETON LIMITED,TAXI HIRE,NEIGHBOURHOODS AND ENVIRONMENT
Rochdale Borough Council,d1061096,07/09/2016,"5,934.00",CAR 2000 HEYWOOD LLP,TAXI HIRE,NEIGHBOURHOODS AND ENVIRONMENT
Rochdale Borough Council,d1061097,07/09/2016,"9,360.00",CAR 2000 HEYWOOD LLP,TAXI HIRE,NEIGHBOURHOODS AND ENVIRONMENT
Rochdale Borough Council,d1061098,07/09/2016,"9,766.00",CAR 2000 HEYWOOD LLP,TAXI HIRE,NEIGHBOURHOODS AND ENVIRONMENT
Rochdale Borough Council,d1061099,07/09/2016,"8,206.00",CAR 2000 HEYWOOD LLP,TAXI HIRE,NEIGHBOURHOODS AND ENVIRONMENT
Rochdale Borough Council,d1061100,07/09/2016,"5,133.00",CAR 2000 HEYWOOD LLP,TAXI HIRE,NEIGHBOURHOODS AND ENVIRONMENT
Rochdale Borough Council,d1061101,07/09/2016,"5,824.00",CAR 2000 HEYWOOD LLP,TAXI HIRE,NEIGHBOURHOODS AND ENVIRONMENT
Rochdale Borough Council,e1021708,07/09/2016,"12,288.34",ROYAL SCHOOL FOR THE DEAF DERBY,OTHER LA`S - SEN PROVISION,EARLY HELP AND SCHOOLS
Rochdale Borough Council,e1021710,07/09/2016,"8,476.58",THE TOGETHER TRUST,OTHER LA`S - SEN PROVISION,EARLY HELP AND SCHOOLS
Rochdale Borough Council,e1021711,07/09/2016,"8,920.80",THE TOGETHER TRUST,OTHER LA`S - SEN PROVISION,EARLY HELP AND SCHOOLS
Rochdale Borough Council,e1021712,07/09/2016,"13,765.04",THE TOGETHER TRUST,OTHER LA`S - SEN PROVISION,EARLY HELP AND SCHOOLS
Rochdale Borough Council,e1021713,07/09/2016,"16,359.61",THE TOGETHER TRUST,OTHER LA`S - SEN PROVISION,EARLY HELP AND SCHOOLS
Rochdale Borough Council,e1021714,07/09/2016,"9,004.90",THE TOGETHER TRUST,OTHER LA`S - SEN PROVISION,EARLY HELP AND SCHOOLS
Rochdale Borough Council,e1021715,07/09/2016,"14,720.98",THE TOGETHER TRUST,OTHER LA`S - SEN PROVISION,EARLY HELP AND SCHOOLS
Rochdale Borough Council,e1021716,07/09/2016,"14,720.98",THE TOGETHER TRUST,OTHER LA`S - SEN PROVISION,EARLY HELP AND SCHOOLS
Rochdale Borough Council,e1021717,07/09/2016,"18,302.19",THE TOGETHER TRUST,OTHER LA`S - SEN PROVISION,EARLY HELP AND SCHOOLS
Rochdale Borough Council,e1021718,07/09/2016,"11,724.23",THE TOGETHER TRUST,OTHER LA`S - SEN PROVISION,EARLY HELP AND SCHOOLS
Rochdale Borough Council,e1021719,07/09/2016,"11,724.22",THE TOGETHER TRUST,OTHER LA`S - SEN PROVISION,EARLY HELP AND SCHOOLS
Rochdale Borough Council,e1021720,07/09/2016,"8,476.58",THE TOGETHER TRUST,OTHER LA`S - SEN PROVISION,EARLY HELP AND SCHOOLS
Rochdale Borough Council,f1004815,07/09/2016,"160,438.00",GRANT THORNTON UK LLP,FEES / COMMISSION,FINANCE SERVICES
Rochdale Borough Council,q1007715,07/09/2016,"5,878.53",SOFTCAT LTD,IT EQUIPMENT,CHILDREN�S SOCIAL CARE
Rochdale Borough Council,w1001558,07/09/2016,"19,512.69",POSSABILITIES CIC TRADING,CONTRACTS,LEARNING DIS & MENTAL HEALTH
Rochdale Borough Council,x1012934,07/09/2016,"9,000.00",KENT COUNTY COUNCIL,ADOPTION PAYMENTS,CHILDREN�S SOCIAL CARE
Rochdale Borough Council,d1061108,08/09/2016,"27,000.00",EMO OIL LIMITED,TRANSACTIONS-EXPENDITURE,CONTROL ACCOUNT
Rochdale Borough Council,d1061109,08/09/2016,"20,644.00",ALCO MINI TRAVEL,TAXI HIRE,NEIGHBOURHOODS AND ENVIRONMENT
Rochdale Borough Council,d1061115,08/09/2016,"5,824.00",CAR 2000 HEYWOOD LLP,TAXI HIRE,NEIGHBOURHOODS AND ENVIRONMENT
Rochdale Borough Council,d1061117,08/09/2016,"9,984.00",STRAND PRIVATE HIRE,TAXI HIRE,NEIGHBOURHOODS AND ENVIRONMENT
Rochdale Borough Council,d1061118,08/09/2016,"12,949.00",STRAND PRIVATE HIRE,TAXI HIRE,NEIGHBOURHOODS AND ENVIRONMENT
Rochdale Borough Council,d1061119,08/09/2016,"15,195.00",STRAND PRIVATE HIRE,TAXI HIRE,NEIGHBOURHOODS AND ENVIRONMENT
Rochdale Borough Council,d1061120,08/09/2016,"10,296.00",STRAND PRIVATE HIRE,TAXI HIRE,NEIGHBOURHOODS AND ENVIRONMENT
Rochdale Borough Council,d1061121,08/09/2016,"10,426.00",STRAND PRIVATE HIRE,TAXI HIRE,NEIGHBOURHOODS AND ENVIRONMENT
Rochdale Borough Council,d1061122,08/09/2016,"6,552.00",STRAND PRIVATE HIRE,TAXI HIRE,NEIGHBOURHOODS AND ENVIRONMENT
Rochdale Borough Council,ph101464,08/09/2016,"805,668.00",VIRGIN CARE SERVICES LIMITED,PH OTHER CONTRACTS,PUBLIC HEALTH
Rochdale Borough Council,f1004821,09/09/2016,"6,591.31",CO-OP PAYPOINT,BANK CHARGES,FINANCE SERVICES
Rochdale Borough Council,ph101465,09/09/2016,"124,574.58",BIG LIFE CENTRES,PH BIG LIFE CONTRACT,PUBLIC HEALTH
Rochdale Borough Council,q1007734,09/09/2016,"12,000.00",SAFEGARD SECURITY SOLUTIONS,MINOR BUILDING WORKS,NEIGHBOURHOODS AND ENVIRONMENT
Rochdale Borough Council,x1012941,09/09/2016,"27,000.00",BOLTON MBC,ADOPTION PAYMENTS,CHILDREN�S SOCIAL CARE
Rochdale Borough Council,e1021740,12/09/2016,"44,100.00",POSITIVE STEPS,EXTERNALLY MANAGED FUNDS,EARLY HELP AND SCHOOLS
Rochdale Borough Council,ph101467,12/09/2016,"31,353.48",VIRGIN CARE SERVICES LIMITED,VIRGIN CARE,PUBLIC HEALTH
Rochdale Borough Council,q1007737,12/09/2016,"6,160.00",STHREE PARTNERSHIP LLP,CAPITAL SALARIES,NEIGHBOURHOODS AND ENVIRONMENT
Rochdale Borough Council,q1007742,12/09/2016,"5,700.00",SENITOR RECRUITMENT,CAPITAL SALARIES,NEIGHBOURHOODS AND ENVIRONMENT
Rochdale Borough Council,w1001559,12/09/2016,"11,261.00",ROCHDALE GATEWAY LEISURE LIMITED,SUPPORT ASIAN CARERS,LEARNING DIS & MENTAL HEALTH
Rochdale Borough Council,w1001560,12/09/2016,"9,458.00",ROCHDALE GATEWAY LEISURE LIMITED,SUPPORT ASIAN CARERS,LEARNING DIS & MENTAL HEALTH
Rochdale Borough Council,w1001563,12/09/2016,"8,100.00",CROSSROADS CARE IN GREATER MANCHESTER,ALCOHOL & DRUGS,LEARNING DIS & MENTAL HEALTH
Rochdale Borough Council,w1001564,12/09/2016,"23,893.00",MAKING SPACE,VOLUNTARY ASSOCIATIONS,LEARNING DIS & MENTAL HEALTH
Rochdale Borough Council,w1001565,12/09/2016,"29,459.00",MAKING SPACE,VOLUNTARY ASSOCIATIONS,LEARNING DIS & MENTAL HEALTH
Rochdale Borough Council,d1061233,13/09/2016,"40,000.00",THE BOND BOARD LIMITED,GRANTS TO OTHER BODIES,NEIGHBOURHOODS AND ENVIRONMENT
Rochdale Borough Council,d1061234,13/09/2016,"13,089.60",SSI SCHAEFER LIMITED,PURCHASE OF OTHER EQUIPMENT,NEIGHBOURHOODS AND ENVIRONMENT
Rochdale Borough Council,s1020761,13/09/2016,"6,609.60",H BELL & SONS ROCHDALE LTD,IMPROVEMENTS-EXTENSIONS & ALTERATIONS,PHYSICAL DIS & OLDER PEOPLE
Rochdale Borough Council,d1061245,14/09/2016,"7,455.12",ENTERPRISE FLEX-E-RENT,TRANSACTIONS-EXPENDITURE,NEIGHBOURHOODS AND ENVIRONMENT
Rochdale Borough Council,d1061248,14/09/2016,"10,000.00",DALE INDUSTRIAL SERVICES LIMITED,TAXI HIRE,NEIGHBOURHOODS AND ENVIRONMENT
Rochdale Borough Council,d1061251,14/09/2016,"5,333.00",PUBLIC SECTOR SOFTWARE LIMITED,EQUIPMENT - GENERAL,NEIGHBOURHOODS AND ENVIRONMENT
Rochdale Borough Council,s1020763,14/09/2016,"10,000.00",THE PENNINE ACUTE HOSPITALS NHS TRUST,SERVICE LEVEL AGREEMENTS,PHYSICAL DIS & OLDER PEOPLE
Rochdale Borough Council,d1061289,15/09/2016,"5,335.00",BALMERS GM LTD,PURCHASE OF PLANT AND MACHINERY,NEIGHBOURHOODS AND ENVIRONMENT
Rochdale Borough Council,e1021767,15/09/2016,"53,029.00",HOPWOOD HALL COLLEGE,OTHER EST - SEN PROVISION,EARLY HELP AND SCHOOLS
Rochdale Borough Council,q1007772,15/09/2016,"10,003.82",THE COPYRIGHT LICENSING AGENCY LIMITED,DATA COLLECTION,NEIGHBOURHOODS AND ENVIRONMENT
Rochdale Borough Council,q1007774,15/09/2016,"8,000.00",SENITOR RECRUITMENT,CAPITAL SALARIES,NEIGHBOURHOODS AND ENVIRONMENT
Rochdale Borough Council,d1061319,16/09/2016,"13,089.60",SSI SCHAEFER LIMITED,PURCHASE OF OTHER EQUIPMENT,NEIGHBOURHOODS AND ENVIRONMENT
Rochdale Borough Council,e1021771,16/09/2016,"673,993.26",AXIOM EDUCATION (ROCHDALE) LIMITED,PFI SCHEMES RPIX,EARLY HELP AND SCHOOLS
Rochdale Borough Council,s1020771,16/09/2016,"5,250.00",ACTION FIRST IPEOPLE LTD,FEES / COMMISSION,PHYSICAL DIS & OLDER PEOPLE
Rochdale Borough Council,s1020776,16/09/2016,"7,350.00",ACTION FIRST IPEOPLE LTD,FEES / COMMISSION,PHYSICAL DIS & OLDER PEOPLE
Rochdale Borough Council,d1061347,19/09/2016,"14,238.00",SSI SCHAEFER LIMITED,PURCHASE OF OTHER EQUIPMENT,NEIGHBOURHOODS AND ENVIRONMENT
Rochdale Borough Council,e1021776,19/09/2016,"5,000.00",OLDHAM COLLEGE,TRAINING,EARLY HELP AND SCHOOLS
Rochdale Borough Council,ph101479,19/09/2016,"15,626.01",MANCHESTER CITY COUNCIL,PH OTHER CONTRACTS,PUBLIC HEALTH
Rochdale Borough Council,q1007794,19/09/2016,"16,042.60",BINDMONT PRINT SERVICES LTD,PRINTING & STATIONERY,FINANCE SERVICES
Rochdale Borough Council,q1007797,19/09/2016,"5,226.36",SOFTCAT LTD,IT EQUIPMENT,NEIGHBOURHOODS AND ENVIRONMENT
Rochdale Borough Council,x1012963,19/09/2016,"9,000.00",CHRISTINE FOSTER LIMITED,AGENCY STAFF,CHILDREN�S SOCIAL CARE
Rochdale Borough Council,x1012964,19/09/2016,"43,000.00",BOLTON MBC,ADOPTION PAYMENTS,CHILDREN�S SOCIAL CARE
Rochdale Borough Council,d1061369,20/09/2016,"7,975.00",UNITY PARTNERSHIP LTD,ROADWORKS,PROPERTY AND HIGHWAYS
Rochdale Borough Council,d1061370,20/09/2016,"5,380.00",UNITY PARTNERSHIP LTD,ROADWORKS,PROPERTY AND HIGHWAYS
Rochdale Borough Council,d1061379,20/09/2016,"7,304.01",NORTHGATE VEHICLE HIRE LIMITED,TRANSACTIONS-EXPENDITURE,NEIGHBOURHOODS AND ENVIRONMENT
Rochdale Borough Council,d1061380,20/09/2016,"7,098.13",ENTERPRISE FLEX-E-RENT,TRANSACTIONS-EXPENDITURE,NEIGHBOURHOODS AND ENVIRONMENT
Rochdale Borough Council,ph101481,20/09/2016,"1,066,251.00",PENNINE CARE NHS,PH PENNINE CARE CONTRACT,PUBLIC HEALTH
Rochdale Borough Council,x1012967,20/09/2016,"5,662.80",CONTACT GROUP,ACTIVITIES,EARLY HELP AND SCHOOLS
Rochdale Borough Council,d1061407,21/09/2016,"6,285.24",PROBRUSH,EQUIPMENT - GENERAL,NEIGHBOURHOODS AND ENVIRONMENT
Rochdale Borough Council,d1061409,21/09/2016,"10,750.00",GMCA,ROADWORKS,PROPERTY AND HIGHWAYS
Rochdale Borough Council,e1021793,21/09/2016,"16,903.49",AXIOM EDUCATION (ROCHDALE) LIMITED,WATER CHARGES,EARLY HELP AND SCHOOLS
Rochdale Borough Council,e1021794,21/09/2016,"17,089.24",AXIOM EDUCATION (ROCHDALE) LIMITED,WATER CHARGES,EARLY HELP AND SCHOOLS
Rochdale Borough Council,e1021808,21/09/2016,"12,387.00",PENNINE CARE NHS,CONSULTANT FEES,EARLY HELP AND SCHOOLS
Rochdale Borough Council,w1001574,21/09/2016,"469,167.21",THE PENNINE ACUTE HOSPITALS NHS TRUST,CONTRACTS,BETTER CARE FUND POOLED BUDGET
Rochdale Borough Council,w1001575,21/09/2016,"8,450.00",SCOPED SOLUTIONS LIMITED,SOFTWARE,PHYSICAL DIS & OLDER PEOPLE
Rochdale Borough Council,d1061423,22/09/2016,"203,305.00",NMS CIVIL ENGINEERING LTD,ROADWORKS,ECONOMY DIRECTORATE
Rochdale Borough Council,d1061448,22/09/2016,"10,750.00",TRANSPORT FOR GREATER MANCHESTER,ROADWORKS,PROPERTY AND HIGHWAYS
Rochdale Borough Council,e1021819,22/09/2016,"9,995.00",RELATE GREATER MANCHESTER SOUTH,ACTIVITIES,EARLY HELP AND SCHOOLS
Rochdale Borough Council,x1012975,22/09/2016,"8,654.34",SPORT WORKS,ACTIVITIES,EARLY HELP AND SCHOOLS
Rochdale Borough Council,d1061459,23/09/2016,"5,000.00",A E YATES LTD,HIGHWAYS STAFF TIME,ECONOMY DIRECTORATE
Rochdale Borough Council,d1061463,23/09/2016,"31,500.00",EMO OIL LIMITED,TRANSACTIONS-EXPENDITURE,CONTROL ACCOUNT
Rochdale Borough Council,d1061467,23/09/2016,"11,791.00",ENTERPRISE MANCHESTER PARTNERSHIP LTD,EQUIPMENT - GENERAL,NEIGHBOURHOODS AND ENVIRONMENT
Rochdale Borough Council,e1021836,23/09/2016,"7,070.00",UNIVERSITY OF BIRMINGHAM,TRAINING-QUALIFICATION,EARLY HELP AND SCHOOLS
Rochdale Borough Council,q1007837,23/09/2016,"10,000.00",VICTIM SUPPORT & WITNESS SERVICE,GRANTS TO THE NON VOLUNTARY SECTOR,NEIGHBOURHOODS AND ENVIRONMENT
Rochdale Borough Council,q1007838,23/09/2016,"10,000.00",VICTIM SUPPORT & WITNESS SERVICE,GRANTS TO THE NON VOLUNTARY SECTOR,NEIGHBOURHOODS AND ENVIRONMENT
Rochdale Borough Council,s1020799,23/09/2016,"13,251.80",K P DODD CONSTRUCTION LIMITED,IMPROVEMENTS-EXTENSIONS & ALTERATIONS,PHYSICAL DIS & OLDER PEOPLE
Rochdale Borough Council,s1020812,23/09/2016,"7,438.50",TUNSTALL HEALTHCARE (UK) LTD,EQUIPMENT - GENERAL,PHYSICAL DIS & OLDER PEOPLE
Rochdale Borough Council,s1020816,23/09/2016,"5,715.00",NEWLINE ADAPTATIONS LTD,IMPROVEMENTS-EXTENSIONS & ALTERATIONS,PHYSICAL DIS & OLDER PEOPLE
Rochdale Borough Council,d1061491,26/09/2016,"401,049.00",COMMUNITY LIGHTING PARTNERSHIP ROCHDALE LTD,PFI SCHEMES RPIX,PROPERTY AND HIGHWAYS
Rochdale Borough Council,d1061492,26/09/2016,"23,447.86",G M WASTE DISPOSAL AUTHORITY,WASTE DISPOSAL LEVY,NEIGHBOURHOODS AND ENVIRONMENT
Rochdale Borough Council,s1020821,26/09/2016,"7,248.00",TERRY GROUP LTD,IMPROVEMENTS-EXTENSIONS & ALTERATIONS,PHYSICAL DIS & OLDER PEOPLE
Rochdale Borough Council,s1020823,26/09/2016,"11,018.00",K P DODD CONSTRUCTION LIMITED,IMPROVEMENTS-EXTENSIONS & ALTERATIONS,PHYSICAL DIS & OLDER PEOPLE
Rochdale Borough Council,d1061527,27/09/2016,"11,590.00",GROUNDWORK LANDSCAPES LIMITED,MINOR BUILDING WORKS,NEIGHBOURHOODS AND ENVIRONMENT
Rochdale Borough Council,d1061532,28/09/2016,"16,647.00",DALE INDUSTRIAL SERVICES LIMITED,TAXI HIRE,NEIGHBOURHOODS AND ENVIRONMENT
Rochdale Borough Council,d1061533,28/09/2016,"19,188.00",DALE INDUSTRIAL SERVICES LIMITED,TAXI HIRE,NEIGHBOURHOODS AND ENVIRONMENT
Rochdale Borough Council,d1061534,28/09/2016,"21,048.25",THE RIVERSIDE GROUP LIMITED,EQUIPMENT - GENERAL,NEIGHBOURHOODS AND ENVIRONMENT
Rochdale Borough Council,d1061547,28/09/2016,"5,000.00",COZY CARS,TAXI HIRE,NEIGHBOURHOODS AND ENVIRONMENT
Rochdale Borough Council,d1061563,28/09/2016,"15,080.00",PREMIERESHOW LIMITED,TAXI HIRE,NEIGHBOURHOODS AND ENVIRONMENT
Rochdale Borough Council,d1061564,28/09/2016,"15,574.00",PREMIERESHOW LIMITED,TAXI HIRE,NEIGHBOURHOODS AND ENVIRONMENT
Rochdale Borough Council,d1061565,28/09/2016,"17,420.00",PREMIERESHOW LIMITED,TAXI HIRE,NEIGHBOURHOODS AND ENVIRONMENT
Rochdale Borough Council,s1020827,28/09/2016,"5,000.00",TAMESIDE METROPOLITAN BOROUGH COUNCIL,SUBSCRIPTIONS,PHYSICAL DIS & OLDER PEOPLE
Rochdale Borough Council,w1001578,28/09/2016,"11,659.00",CARERS FEDERATION,SERVICE LEVEL AGREEMENTS,PHYSICAL DIS & OLDER PEOPLE
Rochdale Borough Council,f1004848,29/09/2016,"7,588.00",ROCHDALE & DIST CITIZENS ADVICE BUREAU,CITIZENS ADVICE BUREAU,NEIGHBOURHOODS AND ENVIRONMENT
Rochdale Borough Council,s1020829,29/09/2016,"5,950.00",ACTION FIRST IPEOPLE LTD,FEES / COMMISSION,PHYSICAL DIS & OLDER PEOPLE
Rochdale Borough Council,d1061591,30/09/2016,"6,238.00",ROAD SAFETY SERVICES LIMITED,ROAD SAFETY,PROPERTY AND HIGHWAYS
Rochdale Borough Council,d1061603,30/09/2016,"6,120.00",ESTATES GAZETTE LIMITED,LAND-ACQUISITION,NEIGHBOURHOODS AND ENVIRONMENT
Rochdale Borough Council,q1007867,30/09/2016,"28,166.50",TRIMBLE INTERNATIONAL UK,SOFTWARE,NEIGHBOURHOODS AND ENVIRONMENT
Rochdale Borough Council,w1001583,30/09/2016,"37,138.00",NHS HEYWOOD MIDDLETON AND ROCHDALE CCG,CONTRACTS,BETTER CARE FUND POOLED BUDGET
Rochdale Borough Council,w1001584,30/09/2016,"49,539.00",NHS HEYWOOD MIDDLETON AND ROCHDALE CCG,CONTRACTS,BETTER CARE FUND POOLED BUDGET
Rochdale Borough Council,w1001585,30/09/2016,"13,214.55",NHS HEYWOOD MIDDLETON AND ROCHDALE CCG,VOLUNTARY ASSOCIATIONS,BETTER CARE FUND POOLED BUDGET
